bitfinex/quotes_SOLUSD_20250425
["timestamp","ask_amount","ask_price","bid_price","bid_amount"]
[1745547828215,44.64964886,151.97,151.96,0.03]
[1745547828423,55.83483238,151.97,151.96,0.03]
[1745547828717,55.83483238,151.97,151.89,6.14357251]
[1745547828912,11.04302195,151.92,151.89,6.14357251]
[1745547830021,24.60302195,151.93,151.89,17.18659446]
[1745547830512,24.60302195,151.93,151.89,7.18659446]
[1745547831438,24.60302195,151.93,151.89,13.76994272]
[1745547831815,13.56,151.93,151.9,11.04302195]
[1745547832433,13.56,151.93,151.89,17.62637021]
[1745547832939,13.56,151.93,151.89,34.08564995]
[1745547833627,13.56,151.93,151.92,11.04302195]
[1745547835549,13.56,151.93,151.89,23.042628]
[1745547835736,13.56,151.93,151.92,11.04302195]
[1745547837050,13.56,151.93,151.92,17.62543374]
[1745547837659,13.56,151.93,151.9,17.62630042]
[1745547838555,13.56,151.93,151.91,11.04302195]
[1745547839131,13.56,151.93,151.91,17.62554528]
[1745547839369,13.56,151.93,151.91,6.58252333]
[1745547839525,11.04302195,151.92,151.89,6.5835668]
[1745547839927,11.04302195,151.9,151.87,0.03]
[1745547840346,11.04302195,151.88,151.87,0.03]
[1745547840545,24.60302195,151.88,151.87,0.03]
[1745547841041,82.7,151.92,151.87,0.03]
[1745547841246,13.56,151.91,151.88,11.04302195]
[1745547841426,24.60302195,151.91,151.87,10.07302195]
[1745547841625,13.56,151.91,151.87,11.04302195]
[1745547842031,24.60302195,151.91,151.87,11.04302195]
[1745547843063,13.56,151.91,151.87,11.04302195]
[1745547843354,13.56,151.91,151.88,11.04302195]
[1745547843551,13.56,151.91,151.89,11.04302195]
[1745547844133,13.56,151.91,151.9,11.04302195]
[1745547844447,13.56,151.95,151.9,11.04302195]
[1745547844751,13.56,151.95,151.91,11.04302195]
[1745547845474,13.56,151.95,151.92,6.58241179]
[1745547845966,13.56,151.95,151.92,17.62543374]
[1745547846636,13.56,151.95,151.92,6.58241179]
[1745547846637,24.60302195,151.95,151.92,6.58241179]
[1745547846955,13.56,151.95,151.92,17.62543374]
[1745547847744,13.56,151.95,151.93,11.04302195]
[1745547848043,13.56,151.95,151.91,17.62574717]
[1745547848253,11.04302195,151.94,151.88,6.58414537]
[1745547848458,11.04302195,151.93,151.88,17.62716732]
[1745547848645,11.04302195,151.93,151.89,11.04302195]
[1745547849171,11.04302195,151.94,151.9,11.04302195]
[1745547849676,11.04302195,151.94,151.9,17.62614102]
[1745547850241,11.04302195,151.93,151.89,17.62671812]
[1745547850441,11.04302195,151.93,151.89,6.58369617]
[1745547851742,11.04302195,151.9,151.86,11.04302195]
[1745547851957,11.04302195,151.9,151.86,6.58487896]
[1745547852159,11.04302195,151.87,151.82,12.73172195]
[1745547852367,11.04302195,151.87,151.83,6.58631364]
[1745547852767,11.04302195,151.87,151.83,17.62933559]
[1745547853165,11.04302195,151.87,151.83,6.58631364]
[1745547853561,11.04302195,151.87,151.83,17.62933559]
[1745547854548,93.74302195,151.89,151.85,11.04302195]
[1745547854948,11.04302195,151.88,151.84,11.04302195]
[1745547855579,93.74302195,151.89,151.84,11.04302195]
[1745547855957,11.04302195,151.88,151.85,6.58544616]
[1745547857174,11.04302195,151.86,151.82,6.61667295]
[1745547857474,11.04302195,151.86,151.82,5.61667295]
[1745547857776,82.7,151.87,151.85,11.04302195]
[1745547857976,82.7,151.87,151.86,6.58501251]
[1745547858149,13.56,151.9,151.86,17.62803446]
[1745547858557,24.60302195,151.9,151.86,6.58501251]
[1745547858760,11.04302195,151.89,151.86,6.58501251]
[1745547859680,24.60302195,151.9,151.86,6.58501251]
[1745547860863,13.56,151.9,151.86,17.62803446]
[1745547861056,13.56,151.9,151.89,11.04302195]
[1745547861657,13.56,151.9,151.88,11.04302195]
[1745547861961,13.56,151.9,151.89,6.58371189]
[1745547864762,30.76632195,151.9,151.82,6.58674746]
[1745547864976,26.0,151.89,151.83,11.04302195]
[1745547865298,11.04302195,151.87,151.83,11.04302195]
[1745547865880,11.04302195,151.87,151.82,17.62976941]
[1745547866089,11.04302195,151.87,151.82,6.58674746]
[1745547866277,11.04302195,151.87,151.82,17.62976941]
[1745547866577,11.04302195,151.87,151.82,6.58674746]
[1745547866886,11.04302195,151.87,151.82,17.62976941]
[1745547867054,26.0,151.89,151.82,17.62976941]
[1745547867384,11.04302195,151.87,151.83,11.04302195]
[1745547867678,11.04302195,151.87,151.82,17.62976941]
[1745547868272,11.04302195,151.85,151.81,7.49731282]
[1745547868585,24.60302195,151.85,151.81,0.9102451]
[1745547868757,24.60302195,151.85,151.81,7.49740314]
[1745547869388,11.04302195,151.84,151.81,0.9102451]
[1745547869759,11.04302195,151.83,151.81,0.9102451]
[1745547869967,11.04302195,151.82,151.81,0.9102451]
[1745547872278,93.74302195,151.82,151.81,0.9102451]
[1745547875073,82.7,151.82,151.81,0.9102451]
[1745547875284,37.04302195,151.82,151.81,0.9102451]
[1745547875804,18.99182359,151.83,151.81,0.9102451]
[1745547878799,7.94880164,151.83,151.81,0.9102451]
[1745547879002,93.74302195,151.84,151.81,0.9102451]
[1745547880600,82.7,151.84,151.81,18.5402929]
[1745547880902,82.7,151.84,151.82,11.04302195]
[1745547881204,82.7,151.84,151.81,18.5402929]
[1745547882097,26.0,151.82,151.81,0.9102451]
[1745547882288,37.04302195,151.82,151.81,0.9102451]
[1745547884295,40.27041672,151.82,151.81,0.9102451]
[1745547884598,82.7,151.81,151.8,8.30073988]
[1745547884793,11.04302195,151.81,151.8,8.30073988]
[1745547885415,18.66652195,151.81,151.8,8.30073988]
[1745547886215,37.45833238,151.81,151.8,8.30073988]
[1745547886386,37.45833238,151.81,151.78,0.03]
[1745547886387,18.79181043,151.8,151.78,0.03]
[1745547886592,152.09483238,151.79,151.78,0.03]
[1745547886893,126.09483238,151.79,151.78,0.03]
[1745547888112,26.0,151.76,151.75,0.03]
[1745547888321,48.0860439,151.76,151.75,0.03]
[1745547889190,66.87785433,151.76,151.75,0.03]
[1745547889391,73.02835433,151.76,151.75,0.03]
[1745547890304,73.02835433,151.76,151.74,0.03]
[1745547890487,11.04302195,151.75,151.74,0.03]
[1745547891324,37.04302195,151.75,151.74,0.03]
[1745547896225,26.0,151.72,151.69,0.03]
[1745547896421,11.04302195,151.7,151.69,0.03]
[1745547897309,26.0,151.72,151.69,0.03]
[1745547897518,24.62302195,151.71,151.66,16.66653268]
[1745547897717,11.04302195,151.7,151.67,0.03]
[1745547898223,11.04302195,151.68,151.67,0.03]
[1745547899603,22.0860439,151.68,151.67,0.03]
[1745547900114,40.87785433,151.68,151.67,0.03]
[1745547900324,42.42295433,151.68,151.67,0.03]
[1745547901001,39.58,151.68,151.67,0.03]
[1745547901310,24.62302195,151.68,151.67,0.03]
[1745547903106,35.6660439,151.68,151.67,0.03]
[1745547905109,35.80820547,151.68,151.67,0.03]
[1745547905318,35.6660439,151.68,151.67,0.03]
[1745547905521,37.04302195,151.68,151.67,0.03]
[1745547905739,50.62302195,151.68,151.67,0.03]
[1745547906122,13.58,151.68,151.67,0.03]
[1745547906326,24.62302195,151.68,151.67,0.03]
[1745547911420,11.04302195,151.68,151.67,0.03]
[1745547911618,24.62302195,151.68,151.67,0.03]
[1745547911936,37.04302195,151.69,151.67,0.03]
[1745547912134,6.1592,151.75,151.67,0.03]
[1745547912437,22.0860439,151.68,151.67,0.03]
[1745547912621,22.22820547,151.68,151.67,0.03]
[1745547913021,26.0,151.61,151.59,0.03]
[1745547913229,35.6660439,151.6,151.59,0.03]
[1745547913721,35.80820547,151.6,151.59,0.03]
[1745547913925,0.14216157,151.59,151.58,0.03]
[1745547914223,11.18518352,151.59,151.58,0.03]
[1745547915242,11.18518352,151.59,151.5,0.9102451]
[1745547915243,26.0,151.55,151.5,0.9102451]
[1745547915442,17.85007532,151.51,151.5,0.9102451]
[1745547917019,26.0,151.48,151.43,1.6387]
[1745547917231,13.58,151.47,151.43,1.6387]
[1745547917530,13.58,151.47,151.39,8.18153445]
[1745547917752,17.85007532,151.44,151.39,8.18153445]
[1745547917925,17.85007532,151.44,151.39,26.03160977]
[1745547918126,17.85007532,151.43,151.39,8.18153445]
[1745547918338,17.85007532,151.43,151.39,8.73471045]
[1745547918521,17.85007532,151.44,151.4,17.85007532]
[1745547918733,39.58,151.49,151.43,17.85007532]
[1745547918937,17.85007532,151.48,151.44,17.85007532]
[1745547919144,43.85007532,151.46,151.39,8.73471045]
[1745547919320,26.0,151.46,151.39,26.58478577]
[1745547919522,205.8,151.52,151.44,17.85007532]
[1745547919823,17.85007532,151.5,151.45,17.85007532]
[1745547920139,220.0,151.52,151.45,17.85007532]
[1745547920359,17.85007532,151.51,151.42,0.14216157]
[1745547920567,14.2,151.52,151.49,17.85007532]
[1745547920741,14.2,151.52,151.47,1.5895]
[1745547920943,32.05007532,151.52,151.48,17.85007532]
[1745547921264,7.78881957,151.57,151.47,1.5895]
[1745547921566,17.85007532,151.52,151.48,6.60153155]
[1745547921951,17.85007532,151.53,151.48,24.45160687]
[1745547922157,17.85007532,151.53,151.48,6.60153155]
[1745547922455,14.2,151.54,151.51,17.85007532]
[1745547922667,17.85007532,151.58,151.53,17.85007532]
[1745547922982,14.2,151.6,151.57,17.85007532]
[1745547923146,32.05007532,151.6,151.55,17.85007532]
[1745547923345,14.2,151.6,151.56,17.85007532]
[1745547923571,0.063,151.59,151.57,6.59761166]
[1745547923771,0.063,151.59,151.57,24.44768698]
[1745547923967,0.063,151.59,151.58,17.85007532]
[1745547924351,0.063,151.59,151.57,17.85007532]
[1745547924644,0.063,151.59,151.56,1.545]
[1745547925052,0.063,151.59,151.56,19.39507532]
[1745547925253,0.063,151.59,151.56,1.545]
[1745547925458,17.85007532,151.57,151.52,1.545]
[1745547925769,17.85007532,151.54,151.52,1.545]
[1745547925966,17.85007532,151.55,151.52,1.545]
[1745547926177,17.85007532,151.57,151.52,25.99476802]
[1745547926475,17.85007532,151.57,151.52,19.39507532]
[1745547926770,17.85007532,151.57,151.53,17.85007532]
[1745547927177,17.85007532,151.57,151.52,8.14473136]
[1745547927178,17.85007532,151.57,151.52,19.39507532]
[1745547927479,17.85007532,151.56,151.52,19.39507532]
[1745547927883,40.263,151.59,151.52,25.99473914]
[1745547928050,17.85007532,151.57,151.52,19.39507532]
[1745547928478,17.85007532,151.56,151.52,19.39507532]
[1745547929085,17.85007532,151.57,151.52,25.99479849]
[1745547929452,17.85007532,151.58,151.53,17.85007532]
[1745547929653,17.85007532,151.55,151.49,6.4164]
[1745547929855,17.85007532,151.52,151.47,19.40097532]
[1745547930297,17.85007532,151.5,151.47,1.5509]
[1745547930453,17.85007532,151.49,151.45,6.4619]
[1745547930753,17.85007532,151.5,151.46,47.85007532]
[1745547931179,17.85007532,151.5,151.45,24.45271802]
[1745547931384,17.85007532,151.49,151.43,8.15452092]
[1745547931581,82.7,151.52,151.45,17.85007532]
[1745547931756,82.7,151.52,151.43,8.15452092]
[1745547931757,14.2,151.53,151.48,17.85007532]
[1745547931963,17.85007532,151.52,151.44,18.64964886]
[1745547932287,100.55007532,151.52,151.47,17.85007532]
[1745547932884,100.55007532,151.52,151.43,24.66379913]
[1745547932885,17.85007532,151.51,151.46,17.85007532]
[1745547933058,17.85007532,151.49,151.44,17.85007532]
[1745547933376,82.7,151.52,151.42,17.85007532]
[1745547933377,17.85007532,151.47,151.42,17.85007532]
[1745547933568,17.85007532,151.47,151.44,0.553176]
[1745547934067,17.85007532,151.46,151.44,0.553176]
[1745547934577,82.7,151.5,151.45,17.85007532]
[1745547934785,26.0,151.46,151.44,0.553176]
[1745547934963,17.85007532,151.45,151.44,0.553176]
[1745547936355,26.0,151.48,151.44,0.553176]
[1745547936562,14.2,151.49,151.44,0.553176]
[1745547936764,14.2,151.49,151.46,17.85007532]
[1745547937463,14.2,151.49,151.47,17.85007532]
[1745547937663,14.2,151.49,151.48,17.85007532]
[1745547937862,17.85007532,151.52,151.47,17.85007532]
[1745547938079,17.85007532,151.51,151.46,17.85007532]
[1745547938283,14.2,151.54,151.49,17.85007532]
[1745547938588,17.85007532,151.53,151.49,17.85007532]
[1745547938773,14.2,151.54,151.5,17.85007532]
[1745547939085,6.1712,151.56,151.51,17.85007532]
[1745547939086,24.02127532,151.56,151.51,17.85007532]
[1745547939260,32.05007532,151.56,151.46,7.53148073]
[1745547939461,17.85007532,151.53,151.46,6.2115]
[1745547939670,17.85007532,151.53,151.47,6.60196738]
[1745547939869,17.85007532,151.53,151.48,17.85007532]
[1745547940082,82.7,151.55,151.47,17.85007532]
[1745547940274,17.85007532,151.53,151.46,6.60229571]
[1745547940481,17.85007532,151.52,151.47,17.85007532]
[1745547940685,17.85007532,151.53,151.48,17.85007532]
[1745547941391,17.85007532,151.52,151.47,17.85007532]
[1745547942186,82.7,151.55,151.47,17.85007532]
[1745547942488,82.7,151.55,151.48,17.85007532]
[1745547942690,17.85007532,151.53,151.48,17.85007532]
[1745547942882,17.85007532,151.52,151.48,17.85007532]
[1745547943078,17.85007532,151.52,151.46,6.60237707]
[1745547943079,82.7,151.55,151.49,17.85007532]
[1745547943266,17.85007532,151.54,151.5,17.85007532]
[1745547943464,100.55007532,151.55,151.5,17.85007532]
[1745547944669,82.7,151.55,151.52,17.85007532]
[1745547944890,14.2,151.56,151.52,17.85007532]
[1745547945098,14.2,151.56,151.53,17.85007532]
[1745547945890,14.2,151.56,151.54,17.85007532]
[1745547946068,0.063,151.58,151.54,17.85007532]
[1745547946503,0.063,151.58,151.55,17.85007532]
[1745547947593,0.063,151.58,151.56,17.85007532]
[1745547947892,0.063,151.58,151.57,17.85007532]
[1745547948078,0.063,151.58,151.57,24.44768698]
[1745547948275,0.063,151.58,151.57,43.09733584]
[1745547950995,0.063,151.58,151.57,43.23949741]
[1745547951195,1e-08,151.59,151.58,18.79181043]
[1745547951403,0.063,151.68,151.61,0.14216157]
[1745547951576,0.063,151.68,151.65,17.85007532]
[1745547952592,0.063,151.68,151.66,17.85007532]
[1745547952775,0.063,151.68,151.66,36.49972418]
[1745547952977,0.063,151.68,151.66,36.64188575]
[1745547953193,0.063,151.68,151.66,36.49972418]
[1745547954084,0.063,151.68,151.66,43.23558217]
[1745547954896,0.063,151.68,151.66,44.5537325]
[1745547955276,0.063,151.68,151.66,43.0934206]
[1745547957897,0.063,151.68,151.66,43.23558217]
[1745547958200,0.063,151.68,151.67,18.64964886]
[1745547958397,0.063,151.68,151.67,36.64188575]
[1745547959498,0.063,151.69,151.68,0.14216157]
[1745547959693,0.063,151.69,151.68,36.64188575]
[1745547959889,43.85007532,151.76,151.72,17.85007532]
[1745547960103,26.0,151.76,151.73,18.64964886]
[1745547960485,14.62,151.79,151.73,17.85007532]
[1745547960790,0.063,151.74,151.73,18.64964886]
[1745547960992,0.063,151.74,151.73,36.49972418]
[1745547962084,0.063,151.74,151.73,43.09037863]
[1745547962691,0.063,151.74,151.73,25.24030331]
[1745547962893,0.063,151.74,151.73,43.09037863]
[1745547963711,0.063,151.74,151.73,43.2325402]
[1745547963899,17.85007532,151.82,151.73,61.02669624]
[1745547964101,17.85007532,151.82,151.78,17.85007532]
[1745547964309,17.85007532,151.81,151.78,18.64964886]
[1745547964809,17.85007532,151.81,151.77,17.85007532]
[1745547965003,26.0,151.82,151.78,36.49972418]
[1745547965320,17.91307532,151.83,151.8,18.64964886]
[1745547965488,0.063,151.83,151.8,18.64964886]
[1745547965689,0.063,151.83,151.78,18.64964886]
[1745547965890,26.0,151.77,151.67,6.59326168]
[1745547966089,17.85007532,151.71,151.66,8.25843147]
[1745547966411,26.0,151.75,151.67,17.85007532]
[1745547966604,17.85007532,151.71,151.67,17.85007532]
[1745547966934,17.85007532,151.7,151.66,17.85007532]
[1745547967210,17.85007532,151.67,151.62,17.85007532]
[1745547967621,17.85007532,151.67,151.64,18.64964886]
[1745547967796,14.6,151.72,151.64,17.85007532]
[1745547967996,17.85007532,151.69,151.64,17.85007532]
[1745547968730,17.85007532,151.69,151.65,36.49972418]
[1745547968898,14.6,151.72,151.67,18.64964886]
[1745547969219,32.45007532,151.72,151.67,17.85007532]
[1745547969715,32.45007532,151.72,151.69,18.64964886]
[1745547969893,17.85007532,151.71,151.67,17.85007532]
[1745547970097,17.85007532,151.71,151.67,18.64964886]
[1745547970305,14.6,151.72,151.67,17.85007532]
[1745547970596,17.85007532,151.71,151.67,17.85007532]
[1745547971026,17.85007532,151.71,151.66,17.85007532]
[1745547971196,17.85007532,151.7,151.67,18.64964886]
[1745547972922,17.85007532,151.71,151.67,17.85007532]
[1745547973126,17.85007532,151.7,151.66,36.49972418]
[1745547973491,17.85007532,151.7,151.66,18.64964886]
[1745547973703,17.85007532,151.67,151.64,18.64964886]
[1745547974717,17.85007532,151.68,151.64,36.49972418]
[1745547975017,17.85007532,151.68,151.64,17.85007532]
[1745547975529,17.85007532,151.7,151.66,36.49972418]
[1745547976302,17.85007532,151.69,151.66,18.64964886]
[1745547976503,82.7,151.71,151.64,17.85007532]
[1745547976504,17.85007532,151.68,151.64,17.85007532]
[1745547976699,17.85007532,151.68,151.65,18.64964886]
[1745547976903,17.85007532,151.69,151.65,36.49972418]
[1745547977105,17.85007532,151.7,151.65,36.49972418]
[1745547977304,17.85007532,151.7,151.67,18.64964886]
[1745547977505,100.55007532,151.71,151.67,18.64964886]
[1745547977719,100.55007532,151.71,151.67,36.49972418]
[1745547977901,100.55007532,151.71,151.65,18.79181043]
[1745547978110,100.55007532,151.71,151.67,17.85007532]
[1745547978821,14.6,151.72,151.68,18.64964886]
[1745547979128,14.6,151.72,151.7,36.49972418]
[1745547979308,14.6,151.72,151.7,18.64964886]
[1745547979709,14.6,151.72,151.68,36.49972418]
[1745547980800,26.0,151.76,151.7,36.49972418]
[1745547981109,17.85007532,151.74,151.7,36.49972418]
[1745547981300,17.85007532,151.75,151.72,18.64964886]
[1745547981709,17.85007532,151.74,151.69,36.64188575]
[1745547982223,17.85007532,151.71,151.67,17.99223689]
[1745547982421,26.0,151.73,151.65,32.83007532]
[1745547982601,17.85007532,151.68,151.63,17.85007532]
[1745547982930,17.85007532,151.68,151.64,36.49972418]
[1745547983109,17.85007532,151.69,151.64,36.49972418]
[1745547983313,26.0,151.71,151.63,18.79181043]
[1745547983314,17.85007532,151.68,151.63,18.79181043]
[1745547983511,17.85007532,151.69,151.64,17.85007532]
[1745547983820,17.85007532,151.69,151.66,18.64964886]
[1745547984001,17.85007532,151.69,151.63,18.79181043]
[1745547984201,17.85007532,151.69,151.64,17.85007532]
[1745547984632,17.85007532,151.69,151.65,18.64964886]
[1745547985014,17.85007532,151.69,151.65,36.49972418]
[1745547985409,17.85007532,151.69,151.65,18.64964886]
[1745547985928,26.0,151.71,151.65,18.64964886]
[1745547986109,17.85007532,151.69,151.65,36.49972418]
[1745547986305,17.85007532,151.7,151.65,36.49972418]
[1745547986500,17.85007532,151.7,151.65,18.64964886]
[1745547986733,43.85007532,151.71,151.67,6.59326168]
[1745547987128,17.85007532,151.73,151.68,36.49972418]
[1745547987443,17.85007532,151.73,151.68,18.64964886]
[1745547987444,17.85007532,151.72,151.68,18.64964886]
[1745547988131,17.85007532,151.71,151.68,18.64964886]
[1745547988329,17.85007532,151.72,151.68,18.64964886]
[1745547988524,17.85007532,151.71,151.66,17.85007532]
[1745547988714,17.85007532,151.67,151.63,36.49972418]
[1745547989239,17.85007532,151.68,151.63,36.49972418]
[1745547989440,17.85007532,151.67,151.63,36.49972418]
[1745547989650,17.85007532,151.68,151.63,18.64964886]
[1745547989810,32.0812,151.7,151.63,36.49972418]
[1745547990018,17.85007532,151.68,151.63,36.49972418]
[1745547990255,17.85007532,151.67,151.63,18.64964886]
[1745547990456,17.85007532,151.64,151.6,0.03]
[1745547990606,17.85007532,151.61,151.6,0.03]
[1745547992527,17.85007532,151.62,151.6,0.03]
[1745547993037,17.85007532,151.63,151.6,0.03]
[1745547993243,1.6015,151.72,151.63,18.64964886]
[1745547993535,1.6015,151.72,151.68,17.85007532]
[1745547993726,17.85007532,151.73,151.68,17.85007532]
[1745547994052,26.0,151.72,151.68,17.85007532]
[1745547994351,30.0,151.69,151.64,0.14216157]
[1745547994644,30.0,151.69,151.68,17.85007532]
[1745547994943,30.0,151.69,151.68,43.09255118]
[1745547995116,30.0,151.69,151.68,43.23471275]
[1745547995539,17.85007532,151.75,151.68,59.71678026]
[1745547995768,17.85007532,151.76,151.72,18.64964886]
[1745547995948,40.98,151.77,151.72,36.49972418]
[1745547996160,17.85007532,151.76,151.72,18.64964886]
[1745547996771,17.85007532,151.75,151.69,18.79181043]
[1745547996977,17.85007532,151.75,151.72,18.64964886]
[1745547997465,43.85007532,151.73,151.62,6.59543595]
[1745547997662,17.85007532,151.69,151.64,17.85007532]
[1745547997954,17.85007532,151.7,151.66,18.64964886]
[1745547998148,17.85007532,151.69,151.65,18.64964886]
[1745547999088,17.85007532,151.7,151.66,6.59369642]
[1745547999264,17.85007532,151.7,151.66,5.59369642]
[1745547999473,97.68,151.72,151.69,18.64964886]
[1745547999780,14.98,151.72,151.69,17.85007532]
[1745548000562,14.98,151.72,151.69,36.49972418]
[1745548000762,14.98,151.72,151.69,43.09194739]
[1745548001653,14.98,151.72,151.7,36.49972418]
[1745548001971,17.85007532,151.75,151.71,17.85007532]
[1745548002146,26.0,151.76,151.72,17.85007532]
[1745548002467,14.98,151.77,151.73,24.44037513]
[1745548002664,14.98,151.77,151.74,36.49972418]
[1745548002872,32.83007532,151.77,151.72,17.85007532]
[1745548003049,17.85007532,151.75,151.71,18.64964886]
[1745548003763,14.98,151.77,151.71,18.64964886]
[1745548003764,17.85007532,151.74,151.71,18.64964886]
[1745548004076,17.85007532,151.74,151.69,17.85007532]
[1745548004261,17.85007532,151.74,151.7,18.64964886]
[1745548004456,14.98,151.77,151.7,18.64964886]
[1745548004666,17.85007532,151.75,151.7,17.85007532]
[1745548004862,17.85007532,151.74,151.69,36.49972418]
[1745548005777,17.85007532,151.74,151.69,43.09210467]
[1745548007060,17.85007532,151.74,151.7,17.85007532]
[1745548007259,17.85007532,151.74,151.7,24.4418937]
[1745548008656,17.85007532,151.74,151.7,6.59181838]
[1745548008976,17.85007532,151.74,151.7,17.85007532]
[1745548009182,82.7,151.76,151.7,17.85007532]
[1745548009473,17.85007532,151.74,151.7,17.85007532]
[1745548009676,17.85007532,151.74,151.69,43.09204561]
[1745548012260,17.85007532,151.73,151.69,43.09204561]
[1745548012569,17.85007532,151.73,151.69,24.44239675]
[1745548012753,17.85007532,151.7,151.67,18.64964886]
[1745548012959,17.85007532,151.71,151.67,25.24287393]
[1745548013159,17.85007532,151.69,151.67,18.64964886]
[1745548013372,17.85007532,151.7,151.67,25.24285388]
[1745548013771,17.85007532,151.71,151.67,25.24285388]
[1745548013985,17.85007532,151.7,151.67,25.24285388]
[1745548014164,17.85007532,151.7,151.65,24.44379634]
[1745548014860,17.85007532,151.7,151.66,17.85007532]
[1745548015363,17.85007532,151.69,151.65,36.49972418]
[1745548016102,1.5432,151.73,151.67,17.85007532]
[1745548016407,17.85007532,151.73,151.68,17.85007532]
[1745548017106,17.85007532,151.73,151.69,6.59239237]
[1745548017483,17.85007532,151.72,151.69,6.59239237]
[1745548018187,17.85007532,151.73,151.69,6.59239237]
[1745548018893,17.85007532,151.73,151.7,18.64964886]
[1745548019095,126.55007532,151.74,151.7,43.09151204]
[1745548019268,43.85007532,151.74,151.7,18.64964886]
[1745548019469,17.85007532,151.73,151.7,18.64964886]
[1745548019888,17.85007532,151.73,151.7,25.24150138]
[1745548020395,43.85007532,151.74,151.7,25.24150138]
[1745548021385,17.85007532,151.74,151.7,43.0915767]
[1745548021587,43.85007532,151.76,151.72,17.85007532]
[1745548021815,17.85007532,151.76,151.72,18.64964886]
[1745548022401,17.85007532,151.76,151.72,17.85007532]
[1745548022602,14.98,151.77,151.75,17.85007532]
[1745548022799,17.91307532,151.81,151.76,17.85007532]
[1745548023178,0.063,151.81,151.8,36.49972418]
[1745548023403,0.063,151.81,151.8,43.08733946]
[1745548023788,0.063,151.83,151.81,0.14216157]
[1745548024100,0.063,151.83,151.82,37.9588497]
[1745548024402,0.063,151.83,151.82,38.95045644]
[1745548025507,0.063,151.83,151.82,45.5372039]
[1745548026919,0.063,151.83,151.82,36.49972418]
[1745548027093,0.063,151.83,151.79,6.58773204]
[1745548027297,17.91307532,151.83,151.8,18.64964886]
[1745548027695,17.85007532,151.82,151.8,18.64964886]
[1745548028014,17.91307532,151.83,151.8,18.64964886]
[1745548030002,17.85007532,151.82,151.77,81.5]
[1745548030307,17.85007532,151.79,151.75,43.08943425]
[1745548030895,17.85007532,151.79,151.75,36.49972418]
[1745548031302,17.85007532,151.79,151.75,18.64964886]
[1745548032615,17.85007532,151.79,151.75,43.08947637]
[1745548032937,0.063,151.83,151.79,18.64964886]
[1745548033126,0.063,151.83,151.8,17.85007532]
[1745548033305,0.063,151.83,151.79,36.49972418]
[1745548034231,0.063,151.83,151.79,43.08763245]
[1745548035744,0.063,151.83,151.8,17.85007532]
[1745548036331,0.063,151.83,151.79,43.08763245]
[1745548036533,0.063,151.83,151.81,18.64964886]
[1745548036847,0.063,151.83,151.82,36.49972418]
[1745548038030,0.063,151.83,151.82,18.64964886]
[1745548038947,17.91307532,151.83,151.77,18.64964886]
[1745548039128,17.91307532,151.83,151.78,17.85007532]
[1745548039323,17.91307532,151.83,151.79,17.85007532]
[1745548039644,0.063,151.83,151.8,36.49972418]
[1745548040631,0.063,151.83,151.8,18.64964886]
[1745548041013,0.063,151.83,151.8,25.2372311]
[1745548041629,0.063,151.83,151.8,43.08730642]
[1745548041830,0.063,151.83,151.81,17.85007532]
[1745548042045,0.063,151.83,151.82,36.49972418]
[1745548042741,0.063,151.83,151.82,43.08647164]
[1745548042914,0.063,151.83,151.82,18.64964886]
[1745548043115,0.063,151.83,151.82,44.54580171]
[1745548044115,0.063,151.84,151.83,36.64188575]
[1745548044935,0.063,151.84,151.83,43.22819939]
[1745548046110,0.063,151.87,151.84,18.64964886]
[1745548046311,0.063,151.87,151.86,17.85007532]
[1745548047131,0.063,151.87,151.86,24.43508783]
[1745548049651,0.063,151.87,151.86,43.22689826]
[1745548055562,0.063,151.9,151.87,18.79181043]
[1745548055858,0.063,151.9,151.89,36.49972418]
[1745548056032,0.063,151.9,151.89,37.81590494]
[1745548056234,1e-08,151.91,151.9,18.79181043]
[1745548056556,1e-08,151.91,151.9,54.49196107]
[1745548057060,1e-08,151.91,151.9,61.07523954]
[1745548057256,0.063,151.96,151.9,63.99759022]
[1745548057444,0.063,151.96,151.95,29.73180143]
[1745548058964,0.063,151.96,151.95,36.4550752]
[1745548059133,0.063,151.96,151.95,36.31291363]
[1745548059335,0.063,151.96,151.95,42.96383283]
[1745548060263,0.063,151.96,151.95,36.38272063]
[1745548060459,0.063,151.96,151.95,42.96383283]